fUSD/lending_fUSD_20250410
["ID","MTS","AMOUNT","RATE_DAILY","PERIOD"]
[357634118,1744262267368,-50000.0,0.00047,47]
[357634119,1744262267393,-591.61549122,0.00047,30]
[357634120,1744262267418,-162.61056871,0.00047,120]
[357634121,1744262267443,-248.792139,0.00047,120]
[357634122,1744262267467,-1000.0,0.00047078,30]
[357634123,1744262267492,-1493.49058,0.00047088,30]
[357634124,1744262267516,-1000.0,0.00047104,120]
[357634125,1744262267540,-500.0,0.00047175,30]
[357634126,1744262267564,-300.0,0.00047183,30]
[357634127,1744262267589,-1000.0,0.00047198,30]
[357634128,1744262267612,-1000.0,0.0004728,120]
[357634129,1744262267636,-1493.49058,0.00047288,30]
[357634130,1744262267661,-208.0,0.0004731,30]
[357634131,1744262267685,-209.0,0.0004731,30]
[357634132,1744262267709,-205.0,0.0004731,30]
[357634133,1744262267734,-810.8,0.00047342,30]
[357634134,1744262267758,-1000.0,0.0004735,30]
[357634135,1744262267784,-150.0,0.00047364,120]
[357634136,1744262267812,-1286.52,0.000474,42]
[357634137,1744262267839,-1286.52,0.000474,42]
[357634138,1744262267865,-1286.52,0.000474,42]
[357634139,1744262267892,-1286.52,0.000474,42]
[357634140,1744262267918,-1286.52,0.000474,42]
[357634141,1744262267950,-1286.52,0.000474,42]
[357634142,1744262267978,-1286.52,0.000474,42]
[357634143,1744262268007,-1286.52,0.000474,42]
[357634144,1744262268036,-1286.52,0.000474,42]
[357634145,1744262268066,-1286.52,0.000474,42]
[357634146,1744262268100,-1286.52,0.000474,42]
[357634147,1744262268130,-1286.52,0.000474,42]
[357634148,1744262268159,-1286.52,0.000474,42]
[357634149,1744262268188,-1286.52,0.000474,42]
[357634150,1744262268217,-1286.52,0.000474,42]
[357634151,1744262268247,-1286.52,0.000474,42]
[357634152,1744262268276,-1286.52,0.000474,42]
[357634153,1744262268304,-1286.52,0.000474,42]
[357634154,1744262268333,-1286.52,0.000474,42]
[357634155,1744262268361,-1286.52,0.000474,42]
[357634156,1744262268390,-1286.52,0.000474,42]
[357634157,1744262268420,-1286.52,0.000474,42]
[357634158,1744262268449,-1286.52,0.000474,42]
[357634159,1744262268478,-1286.52,0.000474,42]
[357634160,1744262268504,-150.0,0.00047448,120]
[357634161,1744262268529,-1000.0,0.00047456,120]
[357634162,1744262268555,-1493.49058,0.00047488,30]
[357634163,1744262268581,-500.0,0.0004749,30]
[357634164,1744262268612,-151.041006,0.00047498,120]
[357634165,1744262268639,-687.13965527,0.000475,30]
[357634166,1744262268665,-218.80814946,0.000475,120]
[357634167,1744262268691,-383.0,0.000475,120]
[357634168,1744262268717,-1067.0,0.000475,30]
[357634169,1744262268743,-1000.0,0.00047506,30]
[357634170,1744262268769,-1100.0,0.00047534,120]
[357634171,1744262268795,-700.0,0.00047534,120]
[357634172,1744262268821,-1800.0,0.00047534,120]
[357634173,1744262268848,-1000.0,0.00047632,120]
[357634174,1744262268874,-1493.49058,0.00047688,30]
[357634175,1744262268900,-1000.0,0.00047752,30]
[357634176,1744262268926,-199.041011,0.00047798,120]
[357634177,1744262268953,-1166.3622391,0.000478,120]
[357634178,1744262268980,-3549.0600425,0.000478,120]
[357634179,1744262269006,-221.96263169,0.000478,120]
[357634180,1744262269032,-1000.0,0.00047808,120]
[357634181,1744262269058,-1493.49058,0.00047888,30]
[357634182,1744262269085,-500.0,0.00047891,30]
[357634183,1744262269111,-150.0,0.00047927,120]
[357634184,1744262269138,-236.35,0.00047945,120]
[357634185,1744262269167,-1000.0,0.00047984,120]
[357634186,1744262269198,-50000.0,0.00048,48]
[357634187,1744262269224,-3300.0,0.00048,120]
[357634188,1744262269251,-3300.0,0.00048,120]
[357634189,1744262269277,-3300.0,0.00048,120]
[357634190,1744262269302,-1098.06689456,0.00048,60]
[357634191,1744262269328,-411.0,0.00048,120]
[357634192,1744262269580,-1000.0,0.00048,120]
[357634193,1744262269607,-300.0,0.00048,120]
[357634194,1744262269633,-626.213005,0.00048,49]
[357634195,1744262269658,-470.25543119,0.00048,120]
[357634196,1744262269683,-1276.50953778,0.00048,120]
[357634197,1744262269707,-471.82487343,0.00048,120]
[357634198,1744262269733,-700.0,0.00048082,120]
[357634199,1744262269758,-1100.0,0.00048082,120]
[357634200,1744262269782,-1800.0,0.00048082,120]
[357634201,1744262269807,-1493.49058,0.00048088,30]
[357634202,1744262269832,-1000.0,0.0004816,120]
[357634203,1744262269866,-150.0,0.00048161,120]
[357634204,1744262269898,-150.0,0.00048222,30]
[357634205,1744262269925,-150.0,0.00048222,30]
[357634206,1744262269951,-150.0,0.00048222,30]
[357634207,1744262269977,-150.0,0.00048222,30]
[357634208,1744262270003,-473.92904283,0.00048222,30]
[357634209,1744262270028,-521.96898498,0.00048222,30]
[357634210,1744262270055,-517.05549887,0.00048222,30]
[357634211,1744262270086,-514.24394337,0.00048222,30]
[357634212,1744262270114,-1493.49058,0.00048288,30]
[357634213,1744262270140,-1000.0,0.00048337,120]
[357634214,1744262270169,-500.0,0.00048364,30]
[357634215,1744262270195,-150.0,0.0004837,120]
[357634216,1744262270221,-1493.49058,0.00048488,30]
[357634217,1744262270246,-500.0,0.00048493,120]
[357634218,1744262270272,-157.041006,0.00048498,120]
[357634219,1744262270297,-1031.71126244,0.000485,120]
[357634220,1744262270322,-236.06681532,0.000485,120]
[357634221,1744262270347,-734.30472041,0.000485,120]
[357634222,1744262270372,-1000.0,0.00048513,120]
[357634223,1744262270398,-276.24852415,0.000486,120]
[357634224,1744262270423,-2786.0,0.000486,120]
[357634225,1744262270448,-700.0,0.0004863,120]
[357634226,1744262270482,-1100.0,0.0004863,120]
[357634227,1744262270509,-1800.0,0.0004863,120]
[357634228,1744262270537,-1000.0,0.00048638,30]
[357634229,1744262270564,-208.0,0.0004865,30]
[357634230,1744262270592,-209.0,0.0004865,30]
[357634231,1744262270619,-205.0,0.0004865,30]
[357634232,1744262270646,-1493.49058,0.00048688,30]
[357634233,1744262270672,-1000.0,0.00048689,120]
[357634234,1744262270699,-1000.0,0.00048696,30]
[357634235,1744262270725,-500.0,0.00048697,30]
[357634236,1744262270753,-157.041006,0.00048798,120]
[357634237,1744262270779,-367.83560156,0.000488,120]
[357634238,1744262270807,-1000.0,0.000488,120]
[357634239,1744262270833,-1000.0,0.000488,120]
[357634240,1744262270860,-20016.79156736,0.000488,120]
[357634241,1744262270886,-980.0,0.000488,120]
[357634242,1744262270913,-1000.0,0.00048865,120]
[357634243,1744262270939,-500.0,0.00048865,30]
[357634244,1744262270965,-5000.0,0.0004888,35]
[357634245,1744262270992,-1493.49058,0.00048888,30]
[357634246,1744262271018,-150.0,0.00048916,120]
[357634247,1744262271048,-575.5,0.0004898,120]
[357634248,1744262271078,-1000.0,0.00048987,30]
[357634249,1744262271106,-574.0,0.0004899,120]
[357634250,1744262271134,-1000.0,0.00048999,120]
[357634251,1744262271165,-50000.0,0.00049,49]
[357634252,1744262271195,-50000.0,0.00049,59]
[357634253,1744262271227,-1267.0,0.00049,120]
[357634254,1744262271254,-327.0,0.00049,120]
[357634255,1744262271281,-469.84736392,0.00049,120]
[357634256,1744262271309,-189.12472942,0.00049,30]
[357634257,1744262271336,-276.69102623,0.00049,120]
[357634258,1744262271362,-183.57919924,0.00049,120]
[357634259,1744262271390,-850.0,0.00049,120]
[357634260,1744262271419,-900.0,0.00049,50]
[357634261,1744262271446,-2500.21116487,0.00049,120]
[357634262,1744262271474,-3000.0,0.00049,120]
[357634263,1744262271499,-3024.132495,0.00049,120]
[357634264,1744262271525,-400.0,0.00049001,90]
[357634265,1744262271551,-1000.0,0.00049041,120]
[357634266,1744262271580,-150.0,0.00049063,120]
[357634267,1744262271607,-1493.49058,0.00049088,30]
[357634268,1744262271633,-500.0,0.0004913,30]
[357634269,1744262271659,-150.0,0.00049144,120]
[357634270,1744262271685,-287.09715749,0.00049178,120]
[357634271,1744262271711,-325.76546468,0.00049178,120]
[357634272,1744262271738,-1800.0,0.00049178,120]
[357634273,1744262271764,-2000.0,0.000492,120]
[357634274,1744262271790,-1000.0,0.00049217,120]
[357634275,1744262271815,-1493.49058,0.00049288,30]
[357634276,1744262271840,-429.96976529,0.00049315,120]
[357634277,1744262271866,-354.0,0.00049315,30]
[357634278,1744262271891,-1000.0,0.00049315,120]
[357634279,1744262271916,-1000.0,0.00049315,120]
[357634280,1744262271943,-1000.0,0.00049315,120]
[357634281,1744262271968,-1000.0,0.00049315,120]
[357634282,1744262271994,-1000.0,0.00049315,120]
[357634283,1744262272020,-1000.0,0.00049315,120]
[357634284,1744262272045,-1000.0,0.00049315,120]
[357634285,1744262272071,-1000.0,0.00049315,120]
[357634286,1744262272101,-1000.0,0.00049315,120]
[357634287,1744262272126,-1000.0,0.00049315,120]
[357634288,1744262272151,-1000.0,0.00049315,120]
[357634289,1744262272177,-1000.0,0.00049315,120]
[357634290,1744262272202,-1000.0,0.00049315,120]
[357634291,1744262272227,-1000.0,0.00049315,120]
[357634292,1744262272252,-1000.0,0.00049315,120]
[357634293,1744262272277,-1000.0,0.00049315,120]
[357634294,1744262272303,-1000.0,0.00049315,120]
[357634295,1744262272328,-1000.0,0.00049315,120]
[357634296,1744262272571,-1000.0,0.00049315,120]
[357634297,1744262272596,-920.84490991,0.00049315,120]
[357634298,1744262272621,-1000.0,0.00049315,120]
[357634299,1744262272646,-3000.0,0.00049315,120]
[357634300,1744262272670,-3000.0,0.00049315,120]
[357634301,1744262272694,-3000.0,0.00049315,120]
[357634302,1744262272719,-3000.0,0.00049315,120]
[357634303,1744262272743,-2786.12700128,0.00049315,120]
[357634304,1744262272768,-500.0,0.00049315,120]
[357634305,1744262272792,-500.0,0.00049315,120]
[357634306,1744262272816,-500.0,0.00049315,120]
[357634307,1744262272840,-301.23289835,0.00049315,120]
[357634308,1744262272865,-10182.97,0.00049315,120]
[357634309,1744262272891,-959.64,0.00049315,120]
[357634310,1744262272917,-1023.04848397,0.00049315,30]
[357634311,1744262272943,-236.35,0.00049315,120]
[357634312,1744262272967,-1436.14,0.00049315,120]
[357634313,1744262272993,-301.79,0.00049315,60]
[357634314,1744262273022,-625.21603512,0.00049342,120]
[357634315,1744262273046,-1000.0,0.00049365,30]
[357634316,1744262273071,-500.0,0.00049381,30]
[357634317,1744262273099,-1000.0,0.00049393,120]
[357634318,1744262273124,-350.0,0.000494,120]
[357634319,1744262273150,-4372.66309834,0.000494,120]
[357634320,1744262273176,-500.0,0.000494,120]
[357634321,1744262273202,-1000.0,0.00049415,30]
[357634322,1744262273228,-150.0,0.0004944,120]
[357634323,1744262273254,-1000.0,0.00049454,30]
[357634324,1744262273279,-1000.0,0.00049463,30]
[357634325,1744262273305,-1000.0,0.00049478,30]
[357634326,1744262273331,-1000.0,0.00049483,30]
[357634327,1744262273356,-1493.49058,0.00049488,30]
[357634328,1744262273382,-151.041006,0.00049498,120]
[357634329,1744262273408,-3755.76374224,0.000495,120]
[357634330,1744262273434,-996.24592193,0.0004952,30]
[357634331,1744262273458,-200000.0,0.0004955,60]
[357634332,1744262273483,-199548.00852046,0.0004955,30]
[357634333,1744262273507,-1000.0,0.00049569,120]
[357634334,1744262273532,-10182.97,0.00049589,120]
[357634335,1744262273557,-959.64,0.00049589,120]
[357634336,1744262273583,-506.37252197,0.00049603,30]
[357634337,1744262273609,-150.0,0.00049659,120]
[357634338,1744262273634,-500.0,0.00049676,30]
[357634339,1744262273659,-528.22404357,0.00049684,30]
[357634340,1744262273684,-1493.49058,0.00049688,30]
[357634341,1744262273710,-3896.57157165,0.0004969,120]
[357634342,1744262273735,-816.9580869,0.00049726,120]
[357634343,1744262273759,-1000.0,0.00049746,120]
[357634344,1744262273784,-150.0,0.00049748,120]
[357634345,1744262273810,-150.0,0.00049756,120]
[357634346,1744262273834,-161.03845318,0.0004977,120]
[357634347,1744262273859,-500.0,0.00049771,30]
[357634348,1744262273885,-157.041006,0.00049798,120]
[357634349,1744262273909,-197.94151323,0.000498,30]
[357634350,1744262273934,-1000.0,0.000498,120]
[357634351,1744262273959,-1000.0,0.00049803,30]
[357634352,1744262273984,-500.0,0.00049811,30]
[357634353,1744262274008,-10500.0,0.0004985,35]
[357634354,1744262274033,-10182.97,0.00049863,120]
[357634355,1744262274058,-959.64,0.00049863,120]
[357634356,1744262274084,-1493.49058,0.00049888,30]
[357634357,1744262274109,-2676.0,0.00049898,61]
[357634358,1744262274135,-800.0,0.000499,120]
[357634359,1744262274161,-1000.0,0.00049922,120]
[357634360,1744262274188,-208.0,0.0004999,30]
[357634361,1744262274212,-209.0,0.0004999,30]
[357634362,1744262274236,-205.0,0.0004999,30]
[357634363,1744262274260,-10000.0,0.00049998,120]
[357634364,1744262274284,-414.39089112,0.00049999,120]
[357634365,1744262274308,-405.64522474,0.00049999,120]
[357634366,1744262274332,-200.13698871,0.00049999,120]
[357634367,1744262274357,-500.0,0.00049999,120]
[357634368,1744262274381,-500.0,0.00049999,120]
[357634369,1744262274406,-500.0,0.00049999,120]
[357634370,1744262274430,-500.0,0.00049999,120]
[357634371,1744262274454,-500.0,0.00049999,120]
[357634372,1744262274478,-500.0,0.00049999,120]
[357634373,1744262274502,-500.0,0.00049999,120]
[357634374,1744262274527,-500.0,0.00049999,120]
[357634375,1744262274551,-475.87719249,0.00049999,120]
[357634376,1744262274575,-1000.0,0.00049999,120]
[357634377,1744262274602,-50000.0,0.0005,50]
[357634378,1744262274628,-50000.0,0.0005,60]
[357634379,1744262274654,-1000000.0,0.0005,120]
[357634380,1744262274679,-265314.5530093,0.0005,120]
[357634382,1744262288490,-500.0,0.00044385,30]
[357634383,1744262288518,-500.0,0.00044468,30]
[357634384,1744262288544,-500.0,0.00044496,30]
[357634385,1744262288583,-500.0,0.00044713,30]
[357634386,1744262288616,-500.0,0.00045217,30]
[357634387,1744262288643,-500.0,0.00045876,30]
[357634388,1744262288669,-500.0,0.00045948,30]
[357634389,1744262288694,-500.0,0.00045949,30]
[357634390,1744262288718,-500.0,0.00045991,30]
[357634391,1744262288744,-500.0,0.00046433,30]
[357634392,1744262288769,-500.0,0.0004711,30]
[357634393,1744262288794,-500.0,0.00047126,30]
[357634394,1744262288818,-500.0,0.0004735,30]
[357634395,1744262288843,-500.0,0.00047523,30]
[357634396,1744262288868,-500.0,0.00047558,30]
[357634397,1744262288892,-500.0,0.00047845,30]
[357634398,1744262288918,-500.0,0.00048063,30]
[357634399,1744262288943,-500.0,0.00048125,30]
[357634400,1744262288968,-500.0,0.00048178,30]
[357634401,1744262288994,-150.0,0.00048222,30]
[357634402,1744262289019,-500.0,0.00048305,30]
[357634403,1744262289045,-500.0,0.00048386,30]
[357634404,1744262289071,-500.0,0.00048612,30]
[357634405,1744262289101,-500.0,0.00048767,30]
[357634406,1744262289129,-500.0,0.00048806,30]
[357634407,1744262289155,-500.0,0.00048859,30]
[357634408,1744262289183,-500.0,0.00049002,30]
[357634409,1744262289209,-500.0,0.00049084,30]
[357634410,1744262289234,-500.0,0.00049235,30]
[357634411,1744262289260,-500.0,0.00049257,30]
[357634412,1744262289289,-653.51317795,0.00049315,120]
[357634413,1744262289315,-653.51317795,0.00049315,120]
[357634414,1744262289341,-653.51317795,0.00049315,120]
[357634415,1744262289370,-653.51317795,0.00049315,120]
[357634416,1744262289399,-653.51317795,0.00049315,120]
[357634417,1744262289426,-653.51317795,0.00049315,120]
[357634418,1744262289465,-653.51317795,0.00049315,120]
[357634419,1744262289495,-653.51317795,0.00049315,120]
[357634420,1744262289522,-653.51317795,0.00049315,120]
[357634421,1744262289551,-653.51317795,0.00049315,120]
[357634422,1744262289580,-653.51317795,0.00049315,120]
[357634423,1744262289609,-653.51317795,0.00049315,120]
[357634424,1744262289637,-653.51317795,0.00049315,120]
[357634425,1744262289664,-653.51317795,0.00049315,120]
[357634426,1744262289692,-653.51317795,0.00049315,120]
[357634427,1744262289720,-653.51317795,0.00049315,120]
[357634428,1744262289748,-653.51317795,0.00049315,120]
[357634429,1744262289776,-653.51317795,0.00049315,120]
[357634430,1744262289804,-653.51317795,0.00049315,120]
[357634431,1744262289831,-653.51317795,0.00049315,120]
[357634432,1744262289859,-653.51317795,0.00049315,120]
[357634433,1744262290181,-653.51317795,0.00049315,120]
[357634434,1744262290209,-653.51317795,0.00049315,120]
[357634435,1744262290236,-653.51317795,0.00049315,120]
[357634436,1744262290262,-653.51317795,0.00049315,120]
[357634437,1744262290288,-653.51317795,0.00049315,120]
[357634438,1744262290314,-653.51317795,0.00049315,120]
[357634439,1744262290340,-653.51317795,0.00049315,120]
[357634440,1744262290367,-653.51317795,0.00049315,120]
[357634441,1744262290394,-653.51317795,0.00049315,120]
[357634442,1744262290422,-653.51317795,0.00049315,120]
[357634443,1744262290450,-653.51317795,0.00049315,120]
[357634444,1744262290478,-653.51317795,0.00049315,120]
[357634445,1744262290505,-653.51317795,0.00049315,120]
[357634446,1744262290537,-653.51317795,0.00049315,120]
[357634447,1744262290564,-653.51317795,0.00049315,120]
[357634448,1744262290593,-653.51317795,0.00049315,120]
[357634449,1744262290621,-653.51317795,0.00049315,120]
[357634450,1744262290649,-653.51317795,0.00049315,120]
[357634451,1744262290676,-653.51317795,0.00049315,120]
[357634452,1744262290705,-653.51317795,0.00049315,120]
[357634453,1744262290733,-653.51317795,0.00049315,120]
[357634454,1744262290761,-653.51317795,0.00049315,120]
[357634455,1744262290789,-653.51317795,0.00049315,120]
[357634456,1744262290817,-653.51317795,0.00049315,120]
[357634457,1744262290844,-653.51317795,0.00049315,120]
[357634458,1744262290871,-653.51317795,0.00049315,120]
[357634459,1744262290898,-653.51317795,0.00049315,120]
[357634460,1744262290926,-653.51317795,0.00049315,120]
[357634461,1744262290952,-653.51317795,0.00049315,120]
[357634462,1744262290979,-15019.88,0.00049315,120]
[357634463,1744262291011,-500.0,0.00049365,30]
[357634464,1744262291037,-500.0,0.00049418,30]
[357634465,1744262291064,-15019.88,0.00049589,120]
[357634466,1744262291091,-500.0,0.00049653,30]
[357634467,1744262291119,-500.0,0.00049853,30]
[357634468,1744262291148,-15019.88,0.00049863,120]
[357634469,1744262291179,-500.0,0.00049927,30]
[357634470,1744262291212,-653.51317795,0.00049999,120]
[357634471,1744262291241,-653.51317795,0.00049999,120]
[357634472,1744262291269,-653.51317795,0.00049999,120]
[357634473,1744262291296,-653.51317795,0.00049999,120]
[357634474,1744262291323,-653.51317795,0.00049999,120]
[357634475,1744262291350,-653.51317795,0.00049999,120]
[357634476,1744262291375,-653.51317795,0.00049999,120]
[357634477,1744262291402,-653.51317795,0.00049999,120]
[357634478,1744262291429,-487.0260262,0.00049999,120]
[357634479,1744262291458,-734685.4469907,0.0005,120]
[357634480,1744262291486,-1000000.0,0.0005,120]
[357634481,1744262291514,-1000000.0,0.0005,120]
[357634482,1744262291553,-164714.122662,0.0005,120]
[357634483,1744262295602,-150.0,0.00048222,30]
[357634484,1744262295646,-835285.877338,0.0005,120]
[357634485,1744262295674,-1000000.0,0.0005,120]
[357634486,1744262295702,-36425.67,0.0005,60]
[357634487,1744262295728,-57735.25079724,0.0005,30]
[357634488,1744262295754,-10811.01171285,0.0005,30]
[357634489,1744262295780,-688.1780963,0.0005,30]
[357634490,1744262295805,-329.0,0.0005,120]
[357634491,1744262295832,-800.0,0.0005,120]
[357634492,1744262295858,-1000.0,0.0005,120]
[357634493,1744262295884,-531.10377578,0.0005,120]
[357634494,1744262295911,-2000.0,0.0005,120]
[357634495,1744262295936,-44629.0,0.0005,120]
[357634496,1744262295962,-400.0,0.0005,120]
[357634497,1744262295987,-276.41,0.0005,120]
[357634498,1744262296013,-444.07023172,0.0005,120]
[357634499,1744262296041,-1000000.0,0.0005,120]
[357634500,1744262296068,-150.0,0.0005,49]
[357634501,1744262296098,-1000.0,0.0005,120]
[357634502,1744262296125,-500.0,0.0005,120]
[357634503,1744262296150,-500.0,0.0005,120]
[357634504,1744262296177,-237.94208161,0.0005,120]
[357634505,1744262296203,-1543.45435474,0.0005,120]
[357634506,1744262296229,-800.0,0.0005,120]
[357634507,1744262296255,-1067.0,0.0005,30]
[357634508,1744262296281,-785.0,0.0005,120]
[357634509,1744262296307,-464.44,0.0005,120]
[357634510,1744262296333,-500.0,0.0005,120]
[357634511,1744262296359,-500.0,0.0005,120]
[357634512,1744262296385,-446.59161176,0.0005,120]
[357634514,1744262300790,-387.57518798,0.00048222,30]
[357634515,1744262300816,-323.95390113,0.00048222,30]
[357634516,1744262300848,-1069.38520029,0.00049315,120]
[357634517,1744262300876,-1069.38520029,0.00049315,120]
[357634518,1744262300903,-1069.38520029,0.00049315,120]
[357634519,1744262300931,-1069.38520029,0.00049315,120]
[357634520,1744262300958,-1069.38520029,0.00049315,120]
[357634521,1744262300985,-1069.38520029,0.00049315,120]
[357634522,1744262301010,-1069.38520029,0.00049315,120]
[357634523,1744262301036,-1069.38520029,0.00049315,120]
[357634524,1744262301062,-1069.38520029,0.00049315,120]
[357634525,1744262301089,-1069.38520029,0.00049315,120]
[357634526,1744262301115,-1069.38520029,0.00049315,120]
[357634527,1744262301140,-1069.38520029,0.00049315,120]
[357634528,1744262301167,-1069.38520029,0.00049315,120]
[357634529,1744262301191,-1069.38520029,0.00049315,120]
[357634530,1744262301216,-1069.38520029,0.00049315,120]
[357634531,1744262301241,-1069.38520029,0.00049315,120]
[357634532,1744262301267,-1069.38520029,0.00049315,120]
[357634533,1744262301292,-1069.38520029,0.00049315,120]
[357634534,1744262301318,-1069.38520029,0.00049315,120]
[357634535,1744262301343,-1069.38520029,0.00049315,120]
[357634536,1744262301368,-1069.38520029,0.00049315,120]
[357634537,1744262301394,-1069.38520029,0.00049315,120]
[357634538,1744262301419,-1069.38520029,0.00049315,120]
[357634539,1744262301445,-1069.38520029,0.00049315,120]
[357634540,1744262301481,-1089.18862992,0.00049999,120]
[357634541,1744262301504,-53.40838824,0.0005,120]
[357634542,1744262301529,-500.0,0.0005,120]
[357634543,1744262301555,-500.0,0.0005,120]
[357634544,1744262301580,-500.0,0.0005,120]
[357634545,1744262301604,-500.0,0.0005,120]
[357634546,1744262301629,-348.93277292,0.0005,120]
[357634547,1744262301654,-150.0,0.0005,30]
[357634548,1744262301679,-182.064,0.0005,30]
[357634549,1744262301705,-500.0,0.0005,50]
[357634550,1744262301730,-500.0,0.0005,50]
[357634551,1744262301755,-500.0,0.0005,50]
[357634552,1744262301779,-569.41954008,0.0005,50]
[357634553,1744262301804,-500.0,0.0005,50]
[357634554,1744262301829,-500.0,0.0005,50]
[357634555,1744262301853,-999.22607412,0.0005,50]
[357634556,1744262301878,-500.0,0.0005,50]
[357634557,1744262301904,-659.42270211,0.0005,50]
[357634558,1744262301930,-500.0,0.0005,50]
[357634559,1744262301956,-500.0,0.0005,50]
[357634560,1744262301980,-591.26357964,0.0005,50]
[357634561,1744262302005,-500.0,0.0005,50]
[357634562,1744262302029,-500.0,0.0005,50]
[357634563,1744262302054,-500.0,0.0005,50]
[357634564,1744262302079,-500.0,0.0005,50]
[357634565,1744262302108,-500.0,0.0005,50]
[357634566,1744262302133,-500.0,0.0005,50]
[357634567,1744262302158,-500.0,0.0005,50]
[357634568,1744262302185,-655.39165902,0.0005,50]
[357634569,1744262302211,-156.0960511,0.0005,50]
[357634570,1744262302236,-500.0,0.0005,50]
[357634571,1744262302263,-500.0,0.0005,50]
[357634572,1744262302288,-500.0,0.0005,50]
[357634573,1744262302313,-500.0,0.0005,50]
[357634574,1744262302338,-500.0,0.0005,50]
[357634575,1744262302364,-500.0,0.0005,50]
[357634576,1744262302389,-500.0,0.0005,50]
[357634577,1744262302416,-500.0,0.00050005,60]
[357634578,1744262302441,-500.0,0.00050021,60]
[357634579,1744262302467,-1000.0,0.00050098,120]
[357634580,1744262302492,-959.64,0.00050136,120]
[357634581,1744262302519,-15019.88,0.00050136,120]
[357634582,1744262302545,-1000.0,0.00050182,60]
[357634583,1744262302571,-1000.0,0.00050237,60]
[357634584,1744262302597,-500.0,0.00050259,60]
[357634585,1744262302624,-1000.0,0.00050274,120]
[357634586,1744262302651,-1000.0,0.00050293,60]
[357634587,1744262302679,-1237.39,0.00050315,120]
[357634588,1744262302706,-959.64,0.0005041,120]
[357634589,1744262302734,-15019.88,0.0005041,120]
[357634590,1744262302761,-1000.0,0.0005045,120]
[357634591,1744262302787,-500.0,0.00050459,60]
[357634592,1744262302814,-157.041006,0.00050498,120]
[357634593,1744262302841,-10000.0,0.00050498,120]
[357634594,1744262302871,-1000000.0,0.000505,120]
[357634595,1744262302898,-500.0,0.00050525,60]
[357634596,1744262302925,-500.0,0.00050566,60]
[357634597,1744262302951,-1000.0,0.00050626,120]
[357634598,1744262303174,-150.0,0.00050659,120]
[357634599,1744262303201,-959.64,0.00050684,120]
[357634600,1744262303227,-236.35,0.00050684,120]
[357634601,1744262303253,-15019.88,0.00050684,120]
[357634602,1744262303278,-500.0,0.0005072,60]
[357634603,1744262303304,-500.0,0.00050742,60]
[357634604,1744262303331,-151.041005,0.00050798,120]
[357634605,1744262303357,-10000.0,0.000508,120]
[357634606,1744262303382,-580.0,0.000508,120]
[357634607,1744262303407,-1000.0,0.00050802,120]
[357634608,1744262303434,-150.0,0.00050829,120]
[357634609,1744262303459,-506.8,0.00050849,30]
[357634610,1744262303484,-1000.0,0.00050882,60]
[357634611,1744262303510,-300.0,0.00050936,30]
[357634612,1744262303535,-500.0,0.00050951,60]
[357634613,1744262303560,-959.64,0.00050958,120]
[357634614,1744262303586,-15019.88,0.00050958,120]
[357634615,1744262303612,-1000.0,0.00050978,120]
[357634616,1744262303637,-10000.0,0.00050998,120]
[357634617,1744262303665,-50000.0,0.00051,51]
[357634618,1744262303691,-50000.0,0.00051,61]
[357634619,1744262303717,-500.0,0.00051,120]